bitfinex/quotes_BTCUSD_20240811
["timestamp","ask_amount","ask_price","bid_price","bid_amount"]
[1723391789846,2.00645113,60132.0,60131.0,0.0771]
[1723391790071,0.02985241,60132.0,60131.0,0.0771]
[1723391790296,0.02985241,60132.0,60131.0,0.488936]
[1723391790532,0.02985241,60132.0,60131.0,0.72176]
[1723391790754,0.02985241,60132.0,60131.0,0.488936]
[1723391790755,0.027,60132.0,60131.0,0.488936]
[1723391790976,0.027,60132.0,60131.0,0.1397]
[1723391791232,0.017,60132.0,60131.0,0.49226215]
[1723391791434,0.002831,60152.0,60131.0,0.41973892]
[1723391791435,0.01,60141.0,60131.0,0.41973892]
[1723391791660,0.066614,60150.0,60145.0,0.1396]
[1723391791661,0.01,60147.0,60145.0,0.1396]
[1723391791872,0.01,60147.0,60146.0,0.721515]
[1723391792339,0.01,60149.0,60148.0,0.349138]
[1723391792547,0.01,60149.0,60148.0,0.721497]
[1723391793412,0.03,60149.0,60148.0,0.1396]
[1723391793619,0.01,60149.0,60148.0,0.255979]
[1723391793828,0.01,60149.0,60148.0,0.488738]
[1723391794033,0.011,60149.0,60148.0,0.490738]
[1723391794439,0.01,60149.0,60148.0,0.488738]
[1723391794850,0.011,60149.0,60148.0,0.490738]
[1723391795091,0.011,60149.0,60148.0,0.500738]
[1723391795092,0.012,60149.0,60148.0,0.500738]
[1723391795525,0.011,60149.0,60148.0,0.723497]
[1723391795727,0.012,60149.0,60148.0,0.500738]
[1723391795959,0.022,60149.0,60148.0,0.500738]
[1723391796169,0.01,60149.0,60148.0,0.721497]
[1723391796374,0.022,60149.0,60148.0,0.972256]
[1723391796602,0.012,60149.0,60148.0,0.87698725]
[1723391796820,0.012,60149.0,60148.0,1.10174625]
[1723391796821,0.021,60149.0,60148.0,1.10174625]
[1723391797033,0.001,60149.0,60148.0,1.10174625]
[1723391797265,0.002,60149.0,60148.0,1.11366035]
[1723391797454,0.022,60149.0,60148.0,1.11366035]
[1723391797877,0.01,60149.0,60148.0,0.27800435]
[1723391798082,0.01,60149.0,60148.0,0.5036521]
[1723391798083,0.011,60149.0,60148.0,0.5036521]
[1723391798291,0.01479267,60149.0,60148.0,0.9791701]
[1723391798539,0.001,60149.0,60148.0,0.9691701]
[1723391798721,0.011,60149.0,60148.0,0.7364111]
[1723391798926,0.012,60149.0,60148.0,0.7464111]
[1723391799344,0.011,60149.0,60148.0,0.7364111]
[1723391799552,0.011,60149.0,60148.0,0.7224111]
[1723391799553,0.01,60149.0,60148.0,0.7224111]
[1723391799808,0.012,60149.0,60148.0,0.7404111]
[1723391800026,0.002,60149.0,60148.0,0.9731701]
[1723391800237,0.001,60149.0,60148.0,0.7324111]
[1723391800477,0.011,60149.0,60148.0,0.7324111]
[1723391800688,0.00180717,60149.0,60148.0,0.9961701]
[1723391801145,0.00180717,60149.0,60148.0,1.13420765]
[1723391801339,0.00180717,60149.0,60148.0,0.9961701]
[1723391801545,0.00180717,60149.0,60148.0,1.13420763]
[1723391801763,0.00180717,60149.0,60148.0,0.9961701]
[1723391802189,0.00180717,60149.0,60148.0,0.7634111]
[1723391802453,0.00180717,60149.0,60148.0,1.13698502]
[1723391802686,0.00180717,60149.0,60148.0,1.15998502]
[1723391803381,0.000831,60152.0,60151.0,1.047361]
[1723391803600,0.000831,60152.0,60151.0,1.51180938]
[1723391803873,0.000831,60152.0,60151.0,1.47377592]
[1723391804094,0.000831,60152.0,60151.0,1.61178797]
[1723391804586,0.001831,60152.0,60151.0,1.61978797]
[1723391805068,0.01,60170.0,60162.0,0.814467]
[1723391805282,0.01,60172.0,60162.0,1.61575211]
[1723391805706,0.02,60172.0,60162.0,1.61575211]
[1723391805938,0.01,60185.0,60184.0,0.581547]
[1723391806155,0.01,60185.0,60184.0,0.726247]
[1723391806828,0.01,60186.0,60185.0,0.814156]
[1723391807033,0.01,60188.0,60187.0,0.58152]
[1723391807906,0.01,60188.0,60186.0,0.232611]
[1723391807907,0.09184646,60191.0,60190.0,0.58149]
[1723391808147,0.032,60189.0,60177.0,0.04515988]
[1723391808363,0.56607874,60196.0,60185.0,0.009]
[1723391808364,0.03,60186.0,60185.0,0.009]
[1723391809016,0.03482101,60186.0,60185.0,0.009]
[1723391809438,0.03482101,60186.0,60185.0,0.023]
[1723391809652,0.01282101,60186.0,60185.0,0.371924]
[1723391809867,0.01282101,60186.0,60185.0,0.59554]
[1723391810082,0.01,60186.0,60185.0,0.67834]
[1723391810299,0.01,60192.0,60188.0,0.0828]
[1723391810512,0.01,60192.0,60191.0,0.116296]
[1723391810729,0.03,60192.0,60191.0,0.348888]
[1723391810937,0.01,60192.0,60191.0,0.348888]
[1723391811147,0.02,60192.0,60191.0,0.58148]
[1723391811362,0.03,60192.0,60191.0,0.348888]
[1723391811796,0.03,60192.0,60191.0,0.368888]
[1723391812029,0.032,60192.0,60191.0,0.008]
[1723391812236,0.01,60192.0,60191.0,0.124296]
[1723391812445,0.03,60192.0,60191.0,0.017]
[1723391812658,0.032,60192.0,60191.0,0.124296]
[1723391812908,0.01,60192.0,60191.0,0.356888]
[1723391813123,0.01,60187.0,60186.0,0.415015]
[1723391813339,0.09184646,60187.0,60186.0,0.415015]
[1723391813555,0.09184646,60187.0,60186.0,0.647627]
[1723391813818,0.09184646,60187.0,60185.0,0.116307]
[1723391813819,0.03,60186.0,60185.0,0.116307]
[1723391814037,0.01,60176.0,60175.0,0.265227]
[1723391814282,0.09184646,60176.0,60175.0,0.497881]
[1723391815138,0.232616,60185.0,60175.0,0.497881]
[1723391815139,0.01,60178.0,60177.0,0.116323]
[1723391815351,0.03,60178.0,60177.0,0.116323]
[1723391815564,0.01,60178.0,60177.0,0.581617]
[1723391815987,0.03,60178.0,60177.0,0.581617]
[1723391816197,0.01,60178.0,60177.0,0.581617]
[1723391816626,0.01,60178.0,60177.0,0.586617]
[1723391817468,0.01,60182.0,60181.0,0.232631]
[1723391817687,0.01,60182.0,60181.0,0.348946]
[1723391817894,0.09184646,60187.0,60186.0,0.348918]
[1723391818102,0.08184646,60187.0,60186.0,0.64763]
[1723391818312,0.01,60190.0,60189.0,0.3489]
[1723391818515,0.01,60190.0,60189.0,0.5815]
[1723391819629,0.01,60191.0,60190.0,0.58149]
[1723391819826,0.03,60191.0,60190.0,0.58149]
[1723391820037,0.01,60191.0,60190.0,0.58149]
[1723391820499,0.01,60191.0,60190.0,0.348894]
[1723391820500,0.03,60191.0,60190.0,0.348894]
[1723391820937,0.01,60191.0,60190.0,0.348894]
[1723391821564,0.01,60191.0,60190.0,0.357894]
[1723391821767,0.01,60191.0,60190.0,0.369894]
[1723391821982,0.01,60191.0,60190.0,0.60249]
[1723391822423,0.02,60195.0,60190.0,0.60249]
[1723391822424,0.01,60195.0,60194.0,0.348871]
[1723391823077,0.01283668,60195.0,60194.0,0.348871]
[1723391823283,0.01,60195.0,60194.0,0.348871]
[1723391823536,0.03,60195.0,60194.0,0.348871]
[1723391823758,0.01284505,60195.0,60194.0,0.11629]
[1723391823964,0.01284505,60195.0,60194.0,0.647552]
[1723391824182,0.02284505,60195.0,60194.0,0.886133]
[1723391824425,0.01,60195.0,60194.0,0.653552]
[1723391825273,0.08267746,60198.0,60197.0,0.116284]
[1723391825274,0.09267746,60198.0,60197.0,0.116284]
[1723391825488,0.10267746,60198.0,60197.0,0.116284]
[1723391825704,0.09552284,60198.0,60197.0,0.813991]
[1723391826140,0.03,60197.0,60194.0,0.014]
[1723391826355,0.148288,60195.0,60194.0,0.008]
[1723391826565,0.380865,60195.0,60194.0,0.008]
[1723391826778,0.03485481,60195.0,60194.0,0.008]
[1723391827051,0.15114281,60195.0,60194.0,0.008]
[1723391827264,0.02,60191.0,60186.0,0.232608]
[1723391827495,0.03,60190.0,60189.0,0.116299]
[1723391827700,0.11470027,60190.0,60189.0,0.116299]
[1723391827908,0.02,60188.0,60187.0,0.116302]
[1723391828116,0.09470027,60190.0,60185.0,0.348923]
[1723391828117,0.03,60186.0,60185.0,0.348923]
[1723391828325,0.01,60186.0,60185.0,0.581539]
[1723391828760,0.01,60190.0,60189.0,0.1928]
[1723391828972,0.02,60194.0,60189.0,0.1928]
[1723391828973,0.01,60192.0,60190.0,0.232596]
[1723391829185,0.09184646,60191.0,60190.0,0.58149]
[1723391829404,0.01,60187.0,60186.0,0.232611]
[1723391829632,0.01,60187.0,60186.0,0.48578069]
[1723391829839,0.01284965,60187.0,60186.0,0.48578069]
[1723391830065,0.01,60187.0,60186.0,0.71839269]
[1723391830284,0.01,60190.0,60189.0,0.2326]
[1723391830489,0.01,60191.0,60190.0,0.348894]
[1723391830704,0.01,60191.0,60190.0,0.71835369]
[1723391830705,0.09184646,60191.0,60190.0,0.71835369]
[1723391830933,0.09184646,60191.0,60190.0,0.58149]
[1723391831147,0.08469761,60191.0,60190.0,0.58149]
[1723391831377,0.08469761,60191.0,60190.0,0.79567615]
[1723391831581,0.09184646,60191.0,60190.0,0.79567615]
[1723391831792,0.09184646,60191.0,60190.0,0.56308015]
[1723391831995,0.09184646,60191.0,60190.0,0.79567615]
[1723391832212,0.09469736,60191.0,60190.0,0.71917716]
[1723391832424,0.09184646,60191.0,60190.0,0.73117716]
[1723391832652,0.09469736,60191.0,60190.0,0.71917716]
[1723391832862,0.09469736,60191.0,60190.0,0.59049]
[1723391833079,0.09184646,60191.0,60190.0,0.7282671]
[1723391833520,0.09267746,60191.0,60190.0,0.7192671]
[1723391833727,0.09267746,60191.0,60190.0,0.7282671]
[1723391833940,0.09267746,60191.0,60190.0,0.7372671]
[1723391834164,0.09267746,60191.0,60190.0,0.7282671]
[1723391834384,0.09267746,60191.0,60190.0,0.7192671]
[1723391834597,0.09267746,60191.0,60190.0,0.7462671]
[1723391834986,0.09267746,60191.0,60190.0,0.2670751]
[1723391834987,0.11467746,60191.0,60190.0,0.2670751]
[1723391834989,0.11467746,60191.0,60190.0,0.4996711]
[1723391835226,0.11467746,60191.0,60190.0,0.2810751]
[1723391835426,0.11752783,60191.0,60190.0,0.2810751]
[1723391835631,0.11752783,60191.0,60190.0,0.5136711]
[1723391835839,0.11752783,60191.0,60190.0,0.2810751]
[1723391836057,0.11752783,60191.0,60190.0,0.26823665]
[1723391836264,0.11752783,60191.0,60190.0,0.50083265]
[1723391836890,0.11752783,60191.0,60190.0,0.51383265]
[1723391837110,0.11752783,60191.0,60190.0,0.28123665]
[1723391837520,0.11467746,60191.0,60190.0,0.28123665]
[1723391837737,0.1175267,60191.0,60190.0,0.51383265]
[1723391838037,0.0955267,60191.0,60190.0,0.74642865]
[1723391838444,0.000831,60191.0,60190.0,0.74642865]
[1723391838662,0.000831,60191.0,60190.0,1.30593957]
[1723391839791,0.000831,60191.0,60190.0,1.30595459]
[1723391841637,0.000831,60191.0,60190.0,0.90954367]
[1723391841862,0.010831,60191.0,60190.0,0.16495367]
[1723391842082,0.010831,60191.0,60190.0,0.51384767]
[1723391842302,0.01368314,60191.0,60190.0,0.74644367]
[1723391842545,0.010831,60191.0,60190.0,0.74644367]
[1723391842752,0.000831,60191.0,60190.0,0.97903967]
[1723391842968,0.000831,60191.0,60190.0,1.21935459]
[1723391843180,0.000831,60191.0,60190.0,1.26800092]
[1723391843405,0.000831,60191.0,60190.0,1.40595401]
[1723391843616,0.000831,60191.0,60190.0,1.47492553]
[1723391844071,0.000831,60191.0,60190.0,1.64735049]
[1723391844305,0.000831,60191.0,60190.0,1.64733961]
[1723391844582,0.000831,60191.0,60190.0,1.81784366]
[1723391844815,0.000831,60191.0,60190.0,1.47492132]
[1723391846101,0.000831,60191.0,60190.0,1.33696823]
[1723391846300,0.000831,60191.0,60190.0,1.47491144]
[1723391847859,0.000831,60191.0,60190.0,1.81803332]
[1723391848067,0.000831,60191.0,60190.0,1.6473353]
[1723391848273,0.000831,60191.0,60190.0,1.47491144]
[1723391848488,0.000831,60191.0,60190.0,1.81803381]
[1723391848619,0.000831,60191.0,60190.0,1.47491144]
[1723391848819,0.000831,60191.0,60190.0,1.64733604]
[1723391849065,0.000831,60191.0,60190.0,1.81803406]
[1723391849274,0.000831,60191.0,60190.0,1.47491144]
[1723391849687,0.000831,60191.0,60190.0,1.33697109]
[1723391849838,0.000831,60191.0,60190.0,1.47491149]
[1723391850909,0.000831,60191.0,60190.0,1.6473362]
[1723391851293,0.000831,60191.0,60190.0,1.47491149]
[1723391851593,0.000831,60191.0,60190.0,1.52466611]
[1723391851796,0.000831,60191.0,60190.0,1.86825829]
[1723391852009,0.000831,60191.0,60190.0,1.69707855]
[1723391852216,0.000831,60191.0,60190.0,1.524659]
[1723391852787,0.000831,60191.0,60190.0,1.69708316]
[1723391852995,0.000831,60191.0,60190.0,1.69708314]
[1723391853194,0.000831,60191.0,60190.0,1.524659]
[1723391853394,0.000831,60191.0,60190.0,1.62811467]
[1723391853659,0.000831,60191.0,60190.0,1.64732943]
[1723391853791,0.000831,60191.0,60190.0,1.47490594]
[1723391854001,0.000831,60191.0,60190.0,1.64733382]
[1723391854413,0.000831,60191.0,60190.0,1.47491037]
[1723391855068,0.000831,60191.0,60190.0,1.47491142]
[1723391855366,0.000831,60191.0,60190.0,1.40594204]
[1723391855567,0.000831,60191.0,60190.0,1.47491255]
[1723391857279,0.000831,60191.0,60190.0,1.4059407]
[1723391857490,0.000831,60191.0,60190.0,1.47491059]
[1723391860175,0.000831,60191.0,60190.0,1.64733527]
[1723391860385,0.000831,60191.0,60190.0,1.64733556]
[1723391860793,0.000831,60191.0,60190.0,1.47491109]
[1723391861536,0.000831,60191.0,60190.0,1.64733616]
[1723391861762,0.000831,60191.0,60190.0,1.81951839]
[1723391862102,0.000831,60191.0,60190.0,1.8195164]
[1723391863044,0.000831,60191.0,60190.0,1.6473337]
[1723391863250,0.000831,60191.0,60190.0,1.8195164]
[1723391863451,0.000831,60191.0,60190.0,1.55702031]
[1723391863808,0.000831,60191.0,60190.0,1.38459571]
[1723391864009,0.000831,60191.0,60190.0,1.3348091]
[1723391864342,0.000831,60191.0,60190.0,1.24665948]
[1723391864545,0.000831,60191.0,60190.0,1.38460337]
[1723391864781,0.000831,60191.0,60190.0,1.17768753]
[1723391864952,0.000831,60191.0,60190.0,1.38460335]
[1723391866026,0.000831,60191.0,60190.0,1.50644708]
[1723391866225,0.000831,60191.0,60190.0,1.67887419]
[1723391866449,0.000831,60191.0,60190.0,1.55623815]
[1723391866856,0.000831,60191.0,60190.0,1.38460811]
[1723391867070,0.000831,60191.0,60190.0,1.55623845]
[1723391867493,0.000831,60191.0,60190.0,1.6788761]
[1723391867708,0.000831,60191.0,60190.0,1.55623873]
[1723391868160,0.000831,60191.0,60190.0,1.75291303]
[1723391869666,0.000831,60191.0,60190.0,2.01040472]
[1723391870513,0.000831,60191.0,60190.0,1.91082198]
[1723391870723,0.000831,60191.0,60190.0,1.77779648]
[1723391870962,0.000831,60191.0,60190.0,1.67822598]
[1723391871190,0.000831,60191.0,60190.0,1.77779648]
[1723391871407,0.000831,60191.0,60190.0,1.67822598]
[1723391871640,0.000831,60191.0,60190.0,1.67822756]
[1723391871880,0.000831,60191.0,60190.0,1.7389049]
[1723391872096,0.000831,60191.0,60190.0,1.70101332]
[1723391872314,0.000831,60191.0,60190.0,1.71501332]
[1723391872537,0.000831,60191.0,60190.0,1.72901332]
[1723391873873,0.000831,60191.0,60190.0,1.72901867]
[1723391874577,0.000831,60191.0,60190.0,1.67922756]
[1723391875250,0.000831,60191.0,60190.0,1.67978812]
[1723391875739,0.000831,60191.0,60190.0,1.50824753]
[1723391875976,0.000831,60191.0,60190.0,1.65682492]
[1723391876677,0.000831,60191.0,60190.0,1.73150226]
[1723391877169,0.000831,60191.0,60190.0,1.65682492]
[1723391877411,0.000831,60191.0,60190.0,1.73150226]
[1723391877646,0.000831,60191.0,60190.0,1.55907198]
[1723391877872,0.000831,60191.0,60190.0,1.48439464]
[1723391878324,0.000831,60191.0,60190.0,1.55907198]
[1723391878556,0.000831,60191.0,60190.0,1.18057826]
[1723391878773,0.000831,60191.0,60190.0,1.42197945]
[1723391879368,0.000831,60191.0,60190.0,1.52543685]
[1723391880712,0.000831,60191.0,60190.0,1.42197944]
[1723391880972,0.000831,60191.0,60190.0,1.5944081]
[1723391881202,0.000831,60191.0,60190.0,1.83522827]
[1723391881650,0.000831,60191.0,60190.0,1.73177033]
[1723391881905,0.000831,60191.0,60190.0,1.17487237]
[1723391882086,0.000831,60191.0,60190.0,1.68007832]
[1723391882547,0.000831,60191.0,60190.0,1.68005687]
[1723391883862,0.000831,60191.0,60190.0,1.91265287]
[1723391884292,0.000831,60191.0,60190.0,1.68005687]
[1723391884542,0.000831,60191.0,60190.0,1.91300018]
[1723391885205,0.000831,60191.0,60190.0,1.91305363]
[1723391886283,0.000831,60191.0,60190.0,1.68045763]
[1723391887349,0.000831,60191.0,60190.0,1.91305363]
[1723391887781,0.000831,60198.0,60197.0,1.38596]
[1723391888016,0.000831,60198.0,60197.0,2.72269163]
[1723391888524,0.000831,60198.0,60197.0,2.87220572]
[1723391888759,0.000831,60198.0,60197.0,2.72266634]
[1723391888990,0.000831,60198.0,60197.0,2.73666634]
[1723391889224,0.000831,60198.0,60197.0,2.73710604]
[1723391889885,0.000831,60198.0,60197.0,2.75110604]
[1723391890136,0.000831,60198.0,60197.0,2.76209909]
[1723391890352,0.000831,60198.0,60197.0,2.76209775]
[1723391890812,0.000831,60198.0,60197.0,2.45147479]
[1723391891079,0.000831,60198.0,60197.0,2.76249337]
[1723391891295,0.000831,60198.0,60197.0,2.74849337]
[1723391891512,0.000831,60198.0,60197.0,2.89780703]
[1723391891729,0.000831,60198.0,60197.0,2.74849337]
[1723391891942,0.000831,60198.0,60197.0,2.76249337]
[1723391892156,0.000831,60198.0,60197.0,2.74849337]
[1723391892391,0.000831,60198.0,60197.0,2.73449337]
[1723391892637,0.000831,60198.0,60197.0,2.89774836]
[1723391893053,0.000831,60198.0,60197.0,3.13031736]
[1723391893266,0.000831,60198.0,60197.0,3.14431736]
[1723391893953,0.08184646,60207.0,60206.0,0.813869]
[1723391894178,0.08184646,60207.0,60206.0,1.91877008]
[1723391894627,0.000831,60208.0,60207.0,0.813858]
[1723391894856,0.000831,60208.0,60207.0,2.21070141]
[1723391895073,0.000831,60208.0,60207.0,2.31017008]
[1723391895319,0.000831,60208.0,60207.0,2.70646825]
[1723391895543,0.000831,60208.0,60207.0,2.75579261]
[1723391895770,0.000831,60208.0,60207.0,2.20291492]
[1723391895994,0.08184646,60222.0,60212.0,0.487666]
[1723391896281,0.00832,60224.0,60212.0,1.30308408]
[1723391896512,0.00832,60224.0,60223.0,0.45867641]
[1723391896750,0.00832,60224.0,60223.0,1.44641972]
[1723391896968,0.00832,60224.0,60223.0,1.70188872]
[1723391897652,0.00832,60224.0,60223.0,1.86570364]
[1723391897890,0.00832,60224.0,60223.0,2.09817264]
[1723391899164,0.00832,60224.0,60223.0,2.11217264]
[1723391899377,0.00832,60224.0,60223.0,2.0981621]
[1723391899592,0.00832,60224.0,60223.0,1.8656931]
[1723391899811,0.00832,60224.0,60223.0,1.62403722]
[1723391900026,0.00832,60224.0,60223.0,1.76188849]
[1723391900247,0.00832,60224.0,60223.0,1.27395049]
[1723391900477,0.00832,60224.0,60223.0,0.66400127]
[1723391900478,0.18172,60224.0,60223.0,0.66400127]
[1723391900688,0.18372,60224.0,60223.0,0.52615]
[1723391901187,0.18372,60224.0,60223.0,0.51215]
[1723391901368,0.18372,60224.0,60223.0,0.628384]
[1723391901369,0.16172,60224.0,60223.0,0.628384]
[1723391901586,0.16172,60224.0,60223.0,0.874853]
[1723391902028,0.18172,60224.0,60223.0,0.628384]
[1723391902262,0.15462162,60224.0,60223.0,1.25213692]
[1723391902463,0.18662162,60224.0,60223.0,0.50715]
[1723391902686,0.18662162,60224.0,60223.0,0.52115]
[1723391902687,0.18372,60224.0,60223.0,0.52115]
[1723391902926,0.18661522,60224.0,60223.0,0.49815]
[1723391903156,0.18661522,60224.0,60223.0,0.50815]
[1723391903345,0.18661522,60224.0,60223.0,0.52115]
[1723391903608,0.18661522,60224.0,60223.0,0.50815]
[1723391903893,0.30284722,60224.0,60223.0,0.50815]
[1723391904114,0.76777722,60224.0,60223.0,0.50815]
[1723391904351,1.00024222,60224.0,60223.0,0.49815]
[1723391904569,1.00024222,60224.0,60223.0,0.50915]
[1723391904797,1.00024222,60224.0,60223.0,0.51815]
[1723391905202,1.16405714,60224.0,60223.0,0.50915]
[1723391905451,1.16405714,60224.0,60223.0,0.51315]
[1723391905887,1.16405714,60224.0,60223.0,0.50215]
[1723391906100,1.16405714,60224.0,60223.0,0.50815]
[1723391907436,0.76777722,60224.0,60223.0,0.50815]
[1723391907671,0.53531222,60224.0,60223.0,0.50815]
[1723391908166,0.76777722,60224.0,60223.0,0.50815]
[1723391909277,0.30284722,60224.0,60223.0,0.50815]
[1723391909493,0.76777722,60224.0,60223.0,0.50815]
[1723391909707,0.53531222,60224.0,60223.0,0.50815]
[1723391909945,0.30284722,60224.0,60223.0,0.50815]
[1723391910213,0.53531222,60224.0,60223.0,0.50815]
[1723391910434,0.30284722,60224.0,60223.0,0.50815]
[1723391911116,0.18661522,60224.0,60223.0,0.50815]
[1723391911337,0.18661522,60224.0,60223.0,0.856853]
[1723391911609,0.12111522,60224.0,60223.0,0.856853]
[1723391911791,0.12111522,60224.0,60223.0,1.089322]
[1723391912044,0.12111522,60224.0,60223.0,0.856853]
[1723391912259,0.11822,60224.0,60223.0,0.852853]
[1723391912485,0.04320252,60224.0,60223.0,0.852853]
[1723391912884,0.04032,60224.0,60223.0,0.852853]
[1723391913124,0.02320304,60224.0,60223.0,1.085322]
[1723391913545,0.02032,60224.0,60223.0,1.089322]
[1723391913981,0.02032,60224.0,60223.0,0.618384]
[1723391914235,0.02032,60224.0,60223.0,0.49815]
[1723391914457,0.24223753,60224.0,60223.0,0.51515]
[1723391914680,0.12600553,60224.0,60223.0,0.50815]
[1723391914913,0.12600553,60224.0,60223.0,0.49815]
[1723391915145,0.12600553,60224.0,60223.0,0.51215]
[1723391915372,0.12600553,60224.0,60223.0,0.860853]
[1723391915615,0.12600553,60224.0,60223.0,0.628384]
[1723391915850,0.12600553,60224.0,60223.0,0.620384]
[1723391916085,0.12600553,60224.0,60223.0,0.50415]
[1723391916576,0.12600553,60224.0,60223.0,0.49815]
[1723391917010,0.12600553,60224.0,60223.0,0.50415]
[1723391917238,0.12600553,60224.0,60223.0,0.51215]
[1723391917462,0.10400553,60224.0,60223.0,0.614384]
[1723391917675,0.12400553,60224.0,60223.0,0.50615]
[1723391917894,0.12400553,60224.0,60223.0,0.51615]
[1723391918339,0.24223753,60224.0,60223.0,0.50815]
[1723391918553,0.24223753,60224.0,60223.0,0.51615]
[1723391919004,0.76736753,60224.0,60223.0,0.51615]
[1723391919224,0.53490253,60224.0,60223.0,0.51615]
[1723391922458,0.76736753,60224.0,60223.0,0.51615]
[1723391922685,0.53490253,60224.0,60223.0,0.51615]
[1723391926001,0.30243753,60224.0,60223.0,0.51615]
[1723391926449,0.53490253,60224.0,60223.0,0.51615]
[1723391930327,0.30243753,60224.0,60223.0,0.51615]
[1723391931079,0.76736753,60224.0,60223.0,0.51615]
[1723391931293,0.53490253,60224.0,60223.0,0.51615]
[1723391932186,0.01120553,60224.0,60223.0,0.928453]
[1723391932401,0.01120553,60224.0,60223.0,1.0663523]
[1723391932614,0.00832,60224.0,60223.0,1.0663523]
[1723391932826,0.01120753,60224.0,60223.0,1.0663523]
[1723391933038,0.00832,60224.0,60223.0,1.0663523]
[1723391933248,0.02120909,60224.0,60223.0,1.0583523]
[1723391934083,0.02120909,60224.0,60223.0,1.0713523]
[1723391934771,0.04120909,60224.0,60223.0,1.0713523]
[1723391934987,0.02120909,60224.0,60223.0,1.0713523]
[1723391935207,0.70287109,60224.0,60223.0,0.65903016]
[1723391935427,0.47040609,60224.0,60223.0,0.65903016]
[1723391935906,0.70287109,60224.0,60223.0,0.52115]
[1723391936347,0.47040609,60224.0,60223.0,0.52115]
[1723391936800,0.47040609,60224.0,60223.0,0.49815]
[1723391937046,0.47040609,60224.0,60223.0,0.50215]
[1723391937275,0.46840609,60224.0,60223.0,0.50815]
[1723391937493,0.70087109,60224.0,60223.0,0.50815]
[1723391937952,0.70287109,60224.0,60223.0,0.50815]
[1723391939563,1.09915101,60224.0,60223.0,0.50815]
[1723391939790,1.49611601,60224.0,60223.0,0.50815]
[1723391940257,1.73604329,60224.0,60223.0,0.50815]
[1723391940879,1.73602787,60224.0,60223.0,0.50215]
[1723391941349,1.73602787,60224.0,60223.0,0.50315]
[1723391941576,1.63696579,60224.0,60223.0,0.50215]
[1723391941794,1.63781396,60224.0,60223.0,0.50215]
[1723391942111,1.63881535,60224.0,60223.0,0.50315]
[1723391942217,1.56401327,60224.0,60223.0,0.49915]
[1723391942458,1.49711601,60224.0,60223.0,0.49915]
[1723391942903,1.57139479,60224.0,60223.0,0.49915]
[1723391943114,1.49711601,60224.0,60223.0,0.49915]
[1723391943364,1.49611601,60224.0,60223.0,0.49915]
[1723391943601,1.57039479,60224.0,60223.0,0.49915]
[1723391944067,1.57039479,60224.0,60223.0,0.49815]
[1723391944280,1.57039479,60224.0,60223.0,0.50015]
[1723391944710,1.57042693,60224.0,60223.0,0.50015]
[1723391944925,2.71184781,60224.0,60223.0,0.50015]
[1723391945151,2.81090989,60224.0,60223.0,0.49915]
[1723391945357,2.77805679,60224.0,60223.0,0.49815]
[1723391945579,2.83567541,60224.0,60223.0,0.49815]
[1723391945793,2.83567541,60224.0,60223.0,0.49915]
[1723391946246,2.83567541,60224.0,60223.0,0.49815]
[1723391946469,2.71184781,60224.0,60223.0,0.49815]
[1723391946678,2.71184781,60224.0,60223.0,0.49915]
[1723391946890,2.77806171,60224.0,60223.0,0.49915]
[1723391947114,2.8357338,60224.0,60223.0,0.49915]
[1723391947322,2.8357338,60224.0,60223.0,0.50015]
[1723391947540,2.8357338,60224.0,60223.0,0.49915]
[1723391947748,2.8357338,60224.0,60223.0,0.50015]
[1723391948470,2.71184781,60224.0,60223.0,0.50015]
[1723391948684,2.8357338,60224.0,60223.0,0.50015]
[1723391949122,2.83571705,60224.0,60223.0,0.50015]
[1723391950552,2.71184781,60224.0,60223.0,0.50015]
[1723391953363,2.81092604,60224.0,60223.0,0.50015]
[1723391953649,2.71184781,60224.0,60223.0,0.50015]
[1723391953825,2.81091888,60224.0,60223.0,0.50015]
[1723391954522,2.78615366,60224.0,60223.0,0.50015]
[1723391955223,2.71184781,60224.0,60223.0,0.50015]
[1723391955692,2.7861317,60224.0,60223.0,0.50015]
[1723391957183,2.71184781,60224.0,60223.0,0.50015]
[1723391957579,2.78613029,60224.0,60223.0,0.50015]
[1723391958447,2.78613559,60224.0,60223.0,0.50015]
[1723391959726,2.78613878,60224.0,60223.0,0.50015]
[1723391960592,2.71184781,60224.0,60223.0,0.50015]
[1723391961511,2.78613361,60224.0,60223.0,0.50015]
[1723391961717,2.71184781,60224.0,60223.0,0.50015]
[1723391962143,2.79204781,60224.0,60223.0,0.50015]
[1723391964982,2.89109987,60224.0,60223.0,0.50015]
[1723391965447,2.95740757,60224.0,60223.0,0.50015]
[1723391966746,2.95748742,60224.0,60223.0,0.50015]
[1723391967616,2.95755985,60224.0,60223.0,0.50015]
[1723391968235,2.85843536,60224.0,60223.0,0.50015]
[1723391968437,2.88377511,60224.0,60223.0,0.50015]
[1723391968637,2.85843536,60224.0,60223.0,0.50015]
[1723391969398,2.8815116,60224.0,60223.0,0.50015]
[1723391969795,2.88091999,60224.0,60223.0,0.50015]
[1723391970237,2.88049501,60224.0,60223.0,0.50015]
[1723391970692,2.92839643,60224.0,60223.0,0.50015]
[1723391972385,2.92834892,60224.0,60223.0,0.50015]
[1723391972600,3.02747341,60224.0,60223.0,0.50015]
[1723391973765,2.93907372,60224.0,60223.0,0.50015]
[1723391974025,3.02723572,60224.0,60223.0,0.50015]
[1723391974262,2.93907372,60224.0,60223.0,0.50015]
[1723391974490,3.02723552,60224.0,60223.0,0.50015]
[1723391975191,2.96151363,60224.0,60223.0,0.50015]
[1723391975445,3.02736694,60224.0,60223.0,0.50015]
[1723391977006,3.02742277,60224.0,60223.0,0.50015]
[1723391977459,3.02698243,60224.0,60223.0,0.50015]
[1723391979108,2.96248243,60224.0,60223.0,0.50015]
[1723391979369,2.84109746,60224.0,60223.0,0.50015]
[1723391979617,2.98767098,60224.0,60223.0,0.50015]
[1723391980365,2.90917098,60224.0,60223.0,0.50015]
[1723391980727,2.78519558,60224.0,60223.0,0.50015]